Cogmind - Beta 13 @@@ ROGUE MODE // 2024.04.10 @ 20:17:14 Player: J-mop Result: Destroyed by Y-45 Defender with Heavy Assault Rifle Performance ------------- Evolutions (2) 1000 Regions Visited (4) 800 Robots Destroyed (66) 330 Value Destroyed (1580) 1580 Prototype IDs (2) 40 Alien Tech Used (0) 0 Bonus (0) 0 TOTAL SCORE: 3750 Bonus ------- None Cogmind --------- Core Integrity 0/550 Matter 218/300 Energy 100/100 System Corruption 1% Temperature Cool (0) Movement Core (50) Location -8/Materials Parts ------- > --- POWER (1) -------- (None) > --- PROPULSION (3) --- (None) > --- UTILITY (5) ------ Advanced Weight Redist. System Hacking Suite Hacking Suite System Shield > --- WEAPON (2) ------- Improved Datajack Katana > --- INVENTORY (5) ---- Flight Unit Flight Unit Reaction Control System System Shield Peak State ------------ > --- POWER ------------ Light Deuterium Engine > --- PROPULSION ------- Flight Unit VTOL Module VTOL Module > --- UTILITY ---------- Advanced Weight Redist. System Structural Scanner Hacking Suite Hacking Suite System Shield > --- WEAPON ----------- Improved Datajack Katana > --- INVENTORY -------- Flight Unit Flight Unit Reaction Control System System Shield [Rating: 27] Favorites ----------- Power Light Ion Engine Engine Light Ion Engine Propulsion Light Treads Treads Light Treads Flight Unit VTOL Module Utility Core Shielding Device Structural Scanner Storage Huge Storage Unit Processor Terrain Scan Processor Hackware Hacking Suite Protection Core Shielding Weapon Assault Rifle Energy Gun Beamcaster Ballistic Gun Assault Rifle Launcher Grenade Launcher Slashing Weapon Katana Special Melee Weapon Improved Datajack Build | -11 -10 -10 -9 -8 ------- Run | Yrd Mat Min Mat Mat Slots Evolved 4 | . . . 2 2 Power . | . . . . . Propulsion 1 | . . . . 1 Utility 3 | . . . 2 1 Weapon . | . . . . . Parts Attached 77 | 6 14 5 16 36 Power 10 | 1 2 . 2 5 Engine 10 | 1 2 . 2 5 Core . | . . . . . Reactor . | . . . . . Propulsion 13 | 2 2 1 2 6 Treads 10 | 2 2 1 2 3 Leg . | . . . . . Wheel . | . . . . . Hover . | . . . . . Flight 3 | . . . . 3 Utility 17 | 1 3 . 4 9 Device 7 | . 1 . 2 4 Storage 2 | 1 1 . . . Processor 1 | . 1 . . . Hackware 3 | . . . . 3 Protection 4 | . . . 2 2 Artifact . | . . . . . Weapon 37 | 2 7 4 8 16 Energy Gun 3 | . 1 . . 2 Energy Cannon . | . . . . . Ballistic Gun 19 | 2 4 . 5 8 Ballistic Cannon . | . . . . . Launcher 4 | . . 3 . 1 Special Weapon . | . . . . . Impact Weapon . | . . . . . Slashing Weapon 2 | . . . . 2 Piercing Weapon . | . . . . . Special Melee Weapon 9 | . 2 1 3 3 Unidentified Prototypes . | . . . . . Parts Lost 20 | . 1 . 4 15 Power 4 | . . . 1 3 Propulsion 7 | . . . 1 6 Utility 6 | . . . 2 4 Weapon 3 | . 1 . . 2 Highest Loss Streak 5 | . 1 . 2 5 To Critical Strikes . | . . . . . Average Slot Usage (%) 89 | . 99 100 94 78 Engine 11 | . 14 14 10 8 Treads 18 | . 28 28 21 7 Device 10 | . 11 14 6 10 Storage 11 | . 14 14 11 8 Protection 12 | . . . 22 22 Energy Gun 3 | . 2 . . 5 Ballistic Gun 11 | . 25 . 19 6 Launcher 7 | . . 27 1 4 Naked Turns . | . . . . . Heaviest Build 102 | 12 88 90 92 102 Greatest Support 62 | 40 40 42 42 62 Greatest Overweight (x) 33 | 1 2 2 4 33 Average Overweight (x) 3 | . 1 2 2 6 Largest Inventory Capacity 25 | 8 25 25 25 25 Average Capacity 23 | 7 21 25 25 23 Most Carried 25 | 4 25 25 25 25 Average Carried 21 | 2 15 24 24 22 Final Capacity 25 | 8 25 25 25 5 Final Carried 25 | 3 25 25 24 4 Class Distribution -------------------- 89% | Mutant 8% | Scavenger-Mutant Dominant Class ---------------- Mutant | -10/Materials Mutant | -10/Mines Mutant | -9/Materials Mutant | -8/Materials Resources | -11 -10 -10 -9 -8 ----------- Run | Yrd Mat Min Mat Mat Matter Collected 1822 | 227 405 123 426 641 Remotely . | . . . . . Salvage Created 2321 | . 642 110 478 1091 Parts 142 | . 51 4 34 53 Haulers Intercepted 2 | . 1 . . 1 Recyclers Shooed 3 | . 2 . 1 . Parts Field Recycled . | . . . . . Retrieved Matter . | . . . . . Parts Self-Destructed . | . . . . . Prevented . | . . . . . Kills | -11 -10 -10 -9 -8 ------- Run | Yrd Mat Min Mat Mat Combat Hostiles Destroyed 38 | . 9 5 12 12 Melee 1 | . . . . 1 Guns 31 | . 9 . 12 10 AOE 6 | . . 5 . 1 Classes Destroyed 13 | . 7 1 4 1 Worker 3 | . . . 1 2 Builder 9 | . 2 1 2 4 Hauler 2 | . 1 . . 1 Recycler 9 | . 3 . . 6 Operator 3 | . 1 . 1 1 Watcher 5 | . 3 . . 2 Swarmer 6 | . 2 . 4 . Grunt 21 | . 7 2 5 7 Brawler 2 | . . . 1 1 Duelist 1 | . . . 1 . Sentry 4 | . . . 1 3 Hunter 1 | . . . . 1 Assembled 3 | . . 3 . . Best Kill Streak 6 | . 3 2 4 6 Combat Bots Only 4 | . 2 2 4 2 Max Kills in Single Turn 3 | . 1 2 1 3 Gunslinging . | . . . . . Exploded 2 | . . 2 . 1 Melee 1 | . . . . 1 Uniques/NPCs Destroyed . | . . . . . Combat | -11 -10 -10 -9 -8 -------- Run | Yrd Mat Min Mat Mat Hostile Shots Fired 289 | . 66 3 75 145 Missed 77 | . 14 2 17 44 Damage Taken 3296 | . 616 26 780 1874 Core 782 | . 115 7 95 565 Absorbed by Shields . | . . . . . Redirected to Shielding 192 | . . . 20 172 Ignored by Resistances 6 | . . . . 6 Core Remaining (%) 75 | 100 . 51 76 . Volleys Fired 209 | . 86 3 47 73 Largest 2 | . 2 2 2 2 Hottest 105 | . 60 60 40 105 Shots Fired 398 | . 156 6 94 142 Gun 384 | . 156 . 94 134 Cannon . | . . . . . Launcher 14 | . . 6 . 8 Special . | . . . . . Kinetic 357 | . 152 . 94 111 Thermal 27 | . 4 . . 23 Explosive 14 | . . 6 . 8 Electromagnetic . | . . . . . Robot Hit Streak 12 | . 9 4 12 9 Robot Miss Streak 7 | . 7 1 3 4 Penetration Max . | . . . . . Secondary Targets 3 | . 1 . . 2 Max Gunslinging Chain 1 | . 1 . . 1 Shots Hit Robots 285 | . 94 2 73 116 Core Hits 123 | . 39 9 25 50 Critical Kills 3 | . 1 . 1 1 Critical Parts Destroyed . | . . . . . Critical Strikes 10 | . 1 . 1 8 Burn 4 | . . . . 4 Destroy 3 | . 1 . 1 1 Sever 3 | . . . . 3 Melee Attacks 49 | . 3 . 9 37 Impact . | . . . . . Slashing 32 | . . . . 32 Piercing . | . . . . . Sneak Attacks 22 | . 3 . 9 10 Combat Hostiles . | . . . . . Follow-up Attacks . | . . . . . Damage Inflicted 4763 | . 806 217 817 2923 Guns 2842 | . 806 . 811 1225 Cannons . | . . . . . Explosions 1101 | . . 217 . 884 Melee 814 | . . . . 814 Ramming 6 | . . . 6 . Kinetic 2538 | . 772 . 811 955 Thermal 817 | . 34 . . 783 Explosive 588 | . . 217 . 371 Electromagnetic . | . . . . . Impact . | . . . . . Slashing 814 | . . . . 814 Piercing . | . . . . . Highest Corruption 3 | . . . 3 1 Average Corruption 2 | . . . 3 1 Corruption Purged . | . . . . . Corruption Blocked . | . . . . . Effects 16 | . . . 15 1 Message Errors 6 | . . . 6 . Matter Fused 2 | . . . 1 1 Heat Flow Errors 2 | . . . 2 . Energy Discharges 2 | . . . 2 . Data Loss (minor) 2 | . . . 2 . Data Loss (major) 1 | . . . 1 . Alerts 1 | . . . 1 . Overload Shots . | . . . . . Overflow Damage 265 | . . . . 265 Projectiles . | . . . . . Explosions 133 | . . . . 133 Melee 132 | . . . . 132 Knockbacks . | . . . . . Impact . | . . . . . Kinetic . | . . . . . Secondary . | . . . . . Self-Inflicted Damage 319 | . . 14 . 305 Shots 8 | . . 1 . 7 Rammed 2 | . . . 2 . Targets Rammed 2 | . . . 2 . Kicked . | . . . . . Crushed . | . . . . . Highest Temperature 159 | . 20 6 94 159 Average Temperature 32 | . 10 6 47 41 Received Heat Transfer 1179 | . 288 6 228 657 Siege Activations . | . . . . . Robots Corrupted . | . . . . . Combat Hostiles . | . . . . . Parts Fried . | . . . . . Impact Corruptions . | . . . . . Robots Melted . | . . . . . Combat Hostiles . | . . . . . Parts Melted 6 | . . . . 6 Heat Transferred 1152 | . 75 . . 1077 Parts Sabotaged . | . . . . . Parts Stolen . | . . . . . Parts Stripped . | . . . . . Power Chain Reactions . | . . . . . Alert | -11 -10 -10 -9 -8 ------- Run | Yrd Mat Min Mat Mat Peak Influence 231 | . 162 67 231 169 Initial 5 | . . 3 . 5 Average 47 | . 51 13 54 60 Maximum Alert Level 1 | . . . 1 . Low Security (%) 99 | 100 100 100 92 100 Level 1 . | . . . 7 . Level 2 . | . . . . . Level 3 . | . . . . . Level 4 . | . . . . . Level 5 . | . . . . . High Security . | . . . . . Max Security . | . . . . . Squads Dispatched 7 | . 2 1 1 3 Investigation 2 | . . 1 . 1 Extermination . | . . . . . Reinforcement 5 | . 2 . 1 2 Assault . | . . . . . Garrison . | . . . . . Intercept . | . . . . . Searches Triggered . | . . . . . Construction Impeded . | . . . . . Haulers Reinforced . | . . . . . Active Scanning Responses . | . . . . . Cargo Convoy Interrupts . | . . . . . Stealth | -11 -10 -10 -9 -8 --------- Run | Yrd Mat Min Mat Mat Distress Signals 1 | . . . . 1 Communications Jammed . | . . . . . Distress Signals . | . . . . . Times Spotted 71 | . 23 4 16 28 Peak Tracking Total 5 | . 5 2 4 5 Tactical Retreats . | . . . . . Traps | -11 -10 -10 -9 -8 ------- Run | Yrd Mat Min Mat Mat Traps Triggered 4 | . . . . 4 Indirectly . | . . . . . Trap Hack Attempts . | . . . . . Triggered . | . . . . . Disarmed . | . . . . . Reprogrammed . | . . . . . Reused . | . . . . . Traps Extracted . | . . . . . Installed . | . . . . . Triggered . | . . . . . Machines | -11 -10 -10 -9 -8 ---------- Run | Yrd Mat Min Mat Mat Machines Disabled 7 | . 1 1 . 5 Max in Single Turn 3 | . 1 1 . 3 Machines Repaired . | . . . . . Machines Dismantled . | . . . . . Machines Sabotaged . | . . . . . Overloaded Fab Kills . | . . . . . Hacking | -11 -10 -10 -9 -8 --------- Run | Yrd Mat Min Mat Mat Machines Accessed 9 | . 3 1 1 4 Terminals 8 | . 3 . 1 4 Fabricators . | . . . . . Repair Stations . | . . . . . Recycling Units . | . . . . . Scanalyzers . | . . . . . Garrison Access . | . . . . . Total Hacks 20 | . 8 1 1 10 Successful 5 | . 3 1 . 1 Failed 15 | . 5 . 1 9 Catastrophic 3 | . 1 . . 2 Database Lockouts . | . . . . . Manual 11 | . 1 . . 10 Terminals 19 | . 8 . 1 10 Fabricators . | . . . . . Repair Stations . | . . . . . Recycling Units . | . . . . . Scanalyzers . | . . . . . Garrison Access . | . . . . . Terminal Hacks 5 | . 3 1 . 1 Prototype ID Bank 1 | . 1 . . . Open Door 1 | . . 1 . . Branch Access Points 1 | . . . . 1 Emergency Access Points 1 | . 1 . . . Hauler Manifests 1 | . 1 . . . Fabricator Hacks . | . . . . . Repair Station Hacks . | . . . . . Recycling Unit Hacks . | . . . . . Scanalyzer . | . . . . . Garrison Access Hacks . | . . . . . Unauthorized Hacks . | . . . . . Terminals . | . . . . . Fabricators . | . . . . . Repair Stations . | . . . . . Recycling Units . | . . . . . Scanalyzers . | . . . . . Garrison Access . | . . . . . Data Cores Recovered . | . . . . . Used . | . . . . . Hacking Detections 8 | . 3 . 1 4 Full Trace Events 1 | . . . . 1 Feedback Events . | . . . . . Feedback Blocked . | . . . . . Robot Schematics Acquired . | . . . . . Robots Built . | . . . . . Authchips . | . . . . . Time . | . . . . . Total Robot Build Rating . | . . . . . Part Schematics Acquired . | . . . . . Parts Built . | . . . . . Authchips . | . . . . . Time . | . . . . . Total Part Build Rating . | . . . . . Parts Repaired . | . . . . . Time . | . . . . . Parts Recycled . | . . . . . Recycled Matter . | . . . . . Retrieved Matter . | . . . . . Retrieved Components . | . . . . . Parts Scanalyzed . | . . . . . Part Schematics Acquired . | . . . . . Parts Damaged . | . . . . . Bothacking | -11 -10 -10 -9 -8 ------------ Run | Yrd Mat Min Mat Mat Used RIF Installer . | . . . . . Robots Hacked 6 | . 1 . 3 2 Non-combat 6 | . 1 . 3 2 Combat . | . . . . . Robot Hacks Applied 13 | . 2 . 7 4 parse_system 4 | . 1 . 2 1 no_distress 6 | . 1 . 3 2 check_alert 3 | . . . 2 1 Relay Couplers Released . | . . . . . Fabnet Peak Effective % . | . . . . . Robots Rewired . | . . . . . Allies Hacked . | . . . . . Hacks Repelled . | . . . . . Allies | -11 -10 -10 -9 -8 -------- Run | Yrd Mat Min Mat Mat Total Allies . | . . . . . Largest Group . | . . . . . Highest-Rated Group . | . . . . . Highest-Rated Ally . | . . . . . Total Orders . | . . . . . Ally Attacks . | . . . . . Total Damage . | . . . . . Kills . | . . . . . Allies Corrupted . | . . . . . Allies Melted . | . . . . . Intel | -11 -10 -10 -9 -8 ------- Run | Yrd Mat Min Mat Mat Robot Analysis Total . | . . . . . Derelict Logs Recovered 1 | . . 1 . . Drone Launches . | . . . . . Drone Recoveries . | . . . . . Exploration | -11 -10 -10 -9 -8 ------------- Run | Yrd Mat Min Mat Mat Turns Passed 8648 | 87 2074 1684 1058 3745 Spaces Moved 2186 | 53 646 517 271 699 Core 151 | 16 . . . 135 Treads 1807 | 37 646 517 271 336 Legs . | . . . . . Wheels . | . . . . . Hover . | . . . . . Flight 228 | . . . . 228 Fastest Speed 30 | 50 160 312 312 30 Average Speed 345 | 137 270 317 313 464 Slowest Speed 1700 | 160 320 320 465 1700 Overloaded Moves . | . . . . . Propulsion Burnouts . | . . . . . Robots Hopped . | . . . . . Cave-ins Triggered . | . . . . . Exploration Rate (%) 52 | 4 87 95 22 54 Regions Visited 4 Branch Regions 1 Pre-discovered Areas . | . . . . . Known Exits Taken . | . . . . . Unknown Exits Taken 4 | 1 1 1 1 . Scrap Searched 1 | . . 1 . . Spaces Dug 6 | . . . . 6 Terrain Destroyed 138 | . . 40 . 98 Melee 6 | . . . . 6 Projectile 1 | . . . . 1 AOE 131 | . . 40 . 91 Terrain Rammed . | . . . . . Walls Destroyed . | . . . . . Machines Disabled . | . . . . . Actions | -11 -10 -10 -9 -8 --------- Run | Yrd Mat Min Mat Mat Total 2851 | 67 839 557 377 1011 Wait 200 | . 45 15 18 122 Move 2182 | 52 645 516 270 699 Hop . | . . . . . Pick Up 87 | 9 35 9 11 23 Fast Attach . | . . . . . Attach 45 | 6 6 1 8 24 Detach . | . . . . . Swap 32 | . 8 4 8 12 Drop 45 | . 11 9 4 21 Fire 209 | . 86 3 47 73 Melee 49 | . 3 . 9 37 Ram . | . . . . . Kick . | . . . . . Crush 2 | . . . 2 . Escape Stasis . | . . . . . Rewire . | . . . . . Trap . | . . . . . Miscellaneous . | . . . . . Route ------- -11/Scrapyard -10/Materials (discovered 4 exits: *Mat x2 / *Min / [Sub]) -10/Mines (discovered 2 exits: *Mat x2) -9/Materials -8/Materials (discovered 1 exit: [*Fac]) History --------- Turn | Location | Event 30 | -11/Scrapyard | Discovered new exit (range 15) 88 | -11/Scrapyard | Entered Materials 310 | -10/Materials | Build established: Mutant 638 | -10/Materials | Discovered new exit (range 15) 899 | -10/Materials | Build established: Scavenger-Mutant 966 | -10/Materials | Discovered new exit (range 5) 1207 | -10/Materials | Build established: Mutant 1240 | -10/Materials | Discovered new exit (range 16) 1562 | -10/Materials | Discovered new exit (range 5) 2162 | -10/Materials | Entered Mines 2179 | -10/Mines | Assembled infested the area 2184 | -10/Mines | Assisted by a Guerilla fighting off Assembled 2189 | -10/Mines | Met a Derelict bent on vengeance 2289 | -10/Mines | Discovered new exit (range 7) 3125 | -10/Mines | Learned Materials stockpile data 3395 | -10/Mines | Met a Derelict shopkeep closing up shop 3767 | -10/Mines | Discovered new exit (range 11) 3846 | -10/Mines | Entered Materials 3846 | -9/Materials | Evolved 2 slots: Utility x2 4857 | -9/Materials | Discovered new exit (range 10) 4904 | -9/Materials | Entered another Materials area 4904 | -8/Materials | Evolved 2 slots: Propulsion x1, Utility x1 5089 | -8/Materials | Lost 3 parts (1p1n1w) 5375 | -8/Materials | Build established: Scavenger-Mutant 5729 | -8/Materials | Build established: Mutant 6387 | -8/Materials | Discovered new exit (range 15) 8061 | -8/Materials | Lost 3 parts (2u1w) 8171 | -8/Materials | Core integrity fell below 50% 8629 | -8/Materials | Core integrity fell below 20% 8649 | -8/Materials | Destroyed by Y-45 Defender with Heavy Assault Rifle Last Messages --------------- Lgt. Ion Engine destroyed. Triggered Shock Trap. The floor emits a surge of raw power. System corrupted (+1). Sneak attack on U-05 Engineer. U-05 Engineer destroyed. Acquired 24 matter. K-01 Serf collects debris. Processing Tank disabled. VTOL Module destroyed. G-47 Trooper Aluminum Leg severed. VTOL Module destroyed. G-47 Trooper destroyed. Flight Unit destroyed. Critical hit (Burn: +37). System corrupted: Matter fused (-9). G-47 Trooper Particle Gun severed. Structural Scanner destroyed. Destroyed Lgt. Armor Plating. Lgt. Deuterium Engine destroyed. Map ----- +----------------------------------------------------+ | ?????????????????????????????????????????????????? | | ?????????????????????????????????????????????????? | | ?????????????????????????????????????????????????? | | ?????????????????????????????????????????????????? | | ?????????????????????????????????????????????????? | | ?????????????????????????????????????????????????? | | ?????????????????????????????????????????????????? | | ?????????????????????????????????????????????????? | | ?????????????????????????????????????????????????? | | ?????????????????????????????????????????????????? | | ?????????????????????????????????????????????????? | | ?????????????????????????????????????????????????? | | ?????????????????????????????????????????????????? | | ?????????????????????????????????????????????????? | | ?????????????????????????????????????????????????? | | ?????#############?? ##??????????????????????????? | | ?????#############?? ## ?????????????????????????? | | ?????## """ """ ##?? ## #????????????#####"??? | | ?????## """ """ # ###+#####??????????#####"??? | | ?????## """ """ # ##?????????? # ??? | | ?????## / ! ?????????? # ??? | | ?????## # ##?????????? + ??? | | ?????## [ # ? #########?????????? # ??? | | ?????## ##?? ################### # ??? | | ????### [ ##?? #################### ###??? | | #???####"######### ? #% Y@[ # # ???? | | #???## ## #==" # [ # ???? | | #???## * !! ## # ""g # + ???? | | #???## !! ## # """ # ######### # ???? | | #???## """ !! ## # """ # ######### # ???? | | ###### """ ## # """ # ##???????? # ?? | | ###### """ ## # # ##???????? ####?? | | ###### ] ## # = # ##????????? # ?? | | #####+####### # + ##????????? # ???? | | ### ##### + ! # ##????????? + ???? | | ##?## # # ##????????? # ???? | | ##### # ]# ##???????? #### # | | ##### ######## ##???????? ###### | | # #### ####### ######### | | # ##### ] ######### | | # ""### | | # %"" T"### ############+##### | | # ^ "" ""### ####### ########## ## | | " "" ################# !!##???????????# | | T " ######### !!##???????????# | | " # [ ######### !!##???????????# | | # % " # ## ^ !!##???????????# | | # ^ " #% / ^^ !!##???????????# | | # """ # %## ^ "" [ !!##???????????# | | # ^ %# #### "T * ######???????????# | +----------------------------------------------------+ Best States ------------- Heat Dissipation 31 Energy Generation 14 Energy Capacity 265 Matter Stores 300 Matter Capacity 300 Sight Range 16 Terrain Scan Density 85 Additional Mass Support 9 Resistance: EX 25 Core Shielding 20 Utility Shielding 66 Evasion (%) 64 Recoil Reduction 3 Offensive Hacking 20 Defensive Hacking 10 Item Schematics ----------------- None Robot Schematics ------------------ None Fabricated ------------ Nothing Alien Tech Used ----------------- None Achievements -------------- None Challenges ------------ None Game ------ Seed ThunderMatterGenerator Manual? 0 Play Time 01:01:13 Cumulative 12.7 hours Start 2024.04.10 @ 19:17:38 End 2024.04.10 @ 20:17:14 Sessions 1 Manual Loads 0 Difficulty Rogue Special Mode None Game No. 9 Rogue 4 Adventurer 5 Explorer 0 Win Type - Total 0 Types 0/0/0/0/0/0/0/0/0 Lore% 10 Gallery% 12 Achievement% 15 Wizard Run 0 Options --------- Layout 1 ASCII 0 Keyboard 0 Movement Numpad Keybinds 0 Fullscreen 1 Font 24/Smallcaps Map View 50x35 Zoom Use 0% Tactical HUD 0 Map Filters NONE Filters NONE Steam 1 RUN: e63303fb-779f-49a3-88b9-4c7fb0281bd6